bitfinex/quotes_BTCUSD_20250505
["timestamp","ask_amount","ask_price","bid_price","bid_amount"]
[1746482085096,0.02701841,95051.0,95049.0,0.2104167]
[1746482085292,0.01649775,95051.0,95050.0,0.21041557]
[1746482085492,0.01649775,95051.0,95050.0,0.21421932]
[1746482086514,0.01649775,95051.0,95050.0,0.21621932]
[1746482086743,0.3542412,95052.0,95050.0,0.21621932]
[1746482086919,0.0142412,95052.0,95051.0,0.21041335]
[1746482087304,0.0142412,95052.0,95051.0,0.21421473]
[1746482088364,0.0142412,95052.0,95051.0,0.21821473]
[1746482088880,0.0142412,95052.0,95051.0,0.22021473]
[1746482089959,0.22465234,95052.0,95051.0,0.00980138]
[1746482090332,0.23965234,95052.0,95051.0,0.00980138]
[1746482090530,0.23965234,95052.0,95051.0,0.006]
[1746482090531,0.22465234,95052.0,95051.0,0.006]
[1746482091110,0.24114945,95052.0,95051.0,0.006]
[1746482091836,0.25704945,95052.0,95051.0,0.006]
[1746482091995,0.61294945,95052.0,95051.0,0.006]
[1746482092541,0.61294945,95052.0,95051.0,0.106]
[1746482093114,0.61294945,95052.0,95051.0,0.10980138]
[1746482094329,0.61294945,95052.0,95051.0,0.10880138]
[1746482096783,0.59645234,95052.0,95051.0,0.10880138]
[1746482097394,1.12605975,95052.0,95051.0,0.10880138]
[1746482097685,1.09645234,95052.0,95051.0,0.10880138]
[1746482099787,1.11295099,95052.0,95051.0,0.10880138]
[1746482099996,1.08115099,95052.0,95051.0,0.10880138]
[1746482100437,1.09645099,95052.0,95051.0,0.10880138]
[1746482101350,1.12606474,95052.0,95051.0,0.10880138]
[1746482101670,1.09645099,95052.0,95051.0,0.10880138]
[1746482102436,1.12606724,95052.0,95051.0,0.10880138]
[1746482103545,1.11076724,95052.0,95051.0,0.10880138]
[1746482106785,1.14246724,95052.0,95051.0,0.10880138]
[1746482107393,1.09426859,95052.0,95051.0,0.10880138]
[1746482108718,1.08926859,95052.0,95051.0,0.10880138]
[1746482110268,1.1057672,95052.0,95051.0,0.10880138]
[1746482114378,1.08926859,95052.0,95051.0,0.10880138]
[1746482120722,1.08926859,95052.0,95051.0,0.10380138]
[1746482120888,1.10576711,95052.0,95051.0,0.10480138]
[1746482121095,1.10576711,95052.0,95051.0,0.10780138]
[1746482130395,1.08926859,95052.0,95051.0,0.10780138]
[1746482131505,1.10446859,95052.0,95051.0,0.10780138]
[1746482131707,1.11946859,95052.0,95051.0,0.10780138]
[1746482132589,1.08926859,95052.0,95051.0,0.10780138]
[1746482133036,0.95965234,95052.0,95051.0,0.10780138]
[1746482133218,0.97615094,95052.0,95051.0,0.10780138]
[1746482134127,1.00635094,95052.0,95051.0,0.10780138]
[1746482134499,0.97615094,95052.0,95051.0,0.10780138]
[1746482135652,1.00581418,95052.0,95051.0,0.10780138]
[1746482137555,0.97615094,95052.0,95051.0,0.10780138]
[1746482138011,0.5307398,95052.0,95051.0,0.10780138]
[1746482138203,0.74115094,95052.0,95051.0,0.10780138]
[1746482139688,0.77175094,95052.0,95051.0,0.10780138]
[1746482140130,0.74115094,95052.0,95051.0,0.10780138]
[1746482140583,0.72465234,95052.0,95051.0,0.10780138]
[1746482142391,1.06465234,95052.0,95051.0,0.10780138]
[1746482143458,1.08115084,95052.0,95051.0,0.10780138]
[1746482143662,1.21847113,95052.0,95051.0,0.10780138]
[1746482143864,1.11295084,95052.0,95051.0,0.10780138]
[1746482144556,1.11295084,95052.0,95051.0,0.10480138]
[1746482144742,1.11295084,95052.0,95051.0,0.10380138]
[1746482144945,1.11295084,95052.0,95051.0,0.10480138]
[1746482146095,1.11395084,95052.0,95051.0,0.10480138]
[1746482147447,1.09745234,95052.0,95051.0,0.10480138]
[1746482148054,1.17672236,95052.0,95051.0,0.10480138]
[1746482148795,1.12710709,95052.0,95051.0,0.10480138]
[1746482150301,1.1436056,95052.0,95051.0,0.10480138]
[1746482160251,1.12710709,95052.0,95051.0,0.10480138]
[1746482162992,1.14360606,95052.0,95051.0,0.10480138]
[1746482166696,1.12710709,95052.0,95051.0,0.10480138]
[1746482168053,1.09530709,95052.0,95051.0,0.10480138]
[1746482169688,1.11180577,95052.0,95051.0,0.10480138]
[1746482170609,1.14280577,95052.0,95051.0,0.10480138]
[1746482171402,1.01180577,95052.0,95051.0,0.10480138]
[1746482171564,0.99795102,95052.0,95051.0,0.10480138]
[1746482172108,0.98215102,95052.0,95051.0,0.10480138]
[1746482175665,1.01180194,95052.0,95051.0,0.10480138]
[1746482175858,1.07969762,95052.0,95051.0,0.10480138]
[1746482177343,1.01180194,95052.0,95051.0,0.10480138]
[1746482180290,0.99530326,95052.0,95051.0,0.10480138]
[1746482182971,1.01180213,95052.0,95051.0,0.10480138]
[1746482186413,1.01180213,95052.0,95051.0,0.00480138]
[1746482188681,0.99530326,95052.0,95051.0,0.00480138]
[1746482189701,1.01180326,95052.0,95051.0,0.00480138]
[1746482190183,0.99530326,95052.0,95051.0,0.00480138]
[1746482191463,1.01180211,95052.0,95051.0,0.00480138]
[1746482196704,0.99530326,95052.0,95051.0,0.00480138]
[1746482198636,0.99530326,95052.0,95051.0,0.10480138]
[1746482201076,1.01180302,95052.0,95051.0,0.10480138]
[1746482206763,0.99530326,95052.0,95051.0,0.10480138]
[1746482208512,1.04154411,95052.0,95051.0,0.10480138]
[1746482209719,1.05804287,95052.0,95051.0,0.10480138]
[1746482216237,1.04154411,95052.0,95051.0,0.10480138]
[1746482220143,0.5963542,95051.0,95050.0,0.35041271]
[1746482220305,1.47982541,95051.0,95050.0,0.17369539]
[1746482220510,1.47982541,95051.0,95050.0,0.10646339]
[1746482220744,0.55049308,95015.0,95014.0,0.0497236]
[1746482221158,0.56503393,95015.0,95014.0,0.0497236]
[1746482221365,0.57125355,95015.0,95014.0,0.0497236]
[1746482221561,0.57125355,95015.0,95014.0,0.0021068]
[1746482221991,0.58775853,95015.0,95014.0,0.0021068]
[1746482222330,0.60365853,95015.0,95014.0,0.0021068]
[1746482222442,0.60365853,95015.0,95014.0,0.0031068]
[1746482222851,0.60365853,95015.0,95014.0,0.0021068]
[1746482223088,1.00365853,95015.0,95014.0,0.0021068]
[1746482223417,1.10500277,95015.0,95014.0,0.0021068]
[1746482224062,1.10500277,95015.0,95014.0,0.0051068]
[1746482224439,1.10500277,95015.0,95014.0,0.0021068]
[1746482224844,1.10500277,95015.0,95014.0,0.0041068]
[1746482225213,1.10500277,95015.0,95014.0,0.002]
[1746482226239,1.08849779,95015.0,95014.0,0.002]
[1746482226643,1.08849779,95015.0,95014.0,0.003]
[1746482226927,0.565045,95010.0,95009.0,0.01953057]
[1746482228121,0.965045,95010.0,95009.0,0.02353057]
[1746482229454,0.98155129,95010.0,95009.0,0.02353057]
[1746482230040,0.98155129,95010.0,95009.0,0.02453057]
[1746482230639,1.08707158,95010.0,95009.0,0.02453057]
[1746482233918,1.08707158,95010.0,95009.0,0.01753057]
[1746482234542,1.10357158,95010.0,95009.0,0.01753057]
[1746482234947,1.08707158,95010.0,95009.0,0.01753057]
[1746482235876,1.10357158,95010.0,95009.0,0.01753057]
[1746482236599,1.11977158,95010.0,95009.0,0.01753057]
[1746482236798,1.10326529,95010.0,95009.0,0.01753057]
[1746482237560,1.10426529,95010.0,95009.0,1e-08]
[1746482238300,0.55054404,94992.0,94982.0,0.0164]
[1746482239637,0.55054404,94992.0,94991.0,0.004]
[1746482239864,0.56705231,94992.0,94991.0,0.004]
[1746482241101,0.56805231,94992.0,94991.0,0.001]
[1746482241294,0.56705231,94992.0,94991.0,0.001]
[1746482241571,0.56905231,94992.0,94991.0,0.001]
[1746482241743,1.16455877,94992.0,94991.0,0.001]
[1746482241896,1.16755877,94992.0,94991.0,0.001]
[1746482242097,1.17055877,94992.0,94991.0,0.001]
[1746482242338,1.18509962,94992.0,94991.0,0.001]
[1746482242643,1.08959316,94992.0,94991.0,0.001]
[1746482244021,1.10549316,94992.0,94991.0,0.001]
[1746482244439,1.12209316,94992.0,94991.0,0.001]
[1746482244754,1.12998952,94992.0,94991.0,0.001]
[1746482244953,1.23550981,94992.0,94991.0,0.001]
[1746482246010,0.21058838,94972.0,94971.0,0.001]
[1746482246553,0.22709952,94972.0,94971.0,0.001]
[1746482246888,0.21058838,94972.0,94971.0,0.001]
[1746482247272,0.21058838,94972.0,94971.0,0.005]
[1746482247923,0.21058838,94972.0,94971.0,0.001]
[1746482247924,0.56512923,94972.0,94971.0,0.001]
[1746482248118,0.56512923,94972.0,94971.0,0.004]
[1746482248425,1.06512923,94972.0,94971.0,0.004]
[1746482248629,1.06512923,94972.0,94971.0,0.008]
[1746482249303,1.17064952,94972.0,94971.0,0.008]
[1746482249907,1.18716064,94972.0,94971.0,0.008]
[1746482250106,1.21966064,94972.0,94971.0,0.008]
[1746482250516,1.20306064,94972.0,94971.0,0.008]
[1746482250837,1.18716064,94972.0,94971.0,0.008]
[1746482254083,1.20236064,94972.0,94971.0,0.008]
[1746482254855,1.18716064,94972.0,94971.0,0.008]
[1746482255653,1.20226064,94972.0,94971.0,0.008]
[1746482256023,1.20226064,94972.0,94971.0,0.001]
[1746482256792,1.08022923,94972.0,94971.0,0.001]
[1746482257536,1.09652923,94972.0,94971.0,0.001]
[1746482257871,1.08092923,94972.0,94971.0,0.001]
[1746482258166,1.06512923,94972.0,94971.0,0.001]
[1746482258350,1.08092923,94972.0,94971.0,0.001]
[1746482258550,1.18644952,94972.0,94971.0,0.001]
[1746482258913,0.22115971,94954.0,94953.0,0.0316]
[1746482259720,0.22829855,94954.0,94953.0,0.0316]
[1746482259939,0.2448123,94954.0,94953.0,0.0316]
[1746482260364,0.2448123,94954.0,94953.0,0.0366]
[1746482260705,0.7458123,94954.0,94953.0,0.0406]
[1746482261137,0.7458123,94954.0,94953.0,0.009]
[1746482261346,0.84315186,94954.0,94953.0,0.009]
[1746482261544,0.84315186,94954.0,94953.0,0.0248]
[1746482262268,0.84215186,94954.0,94953.0,0.0208]
[1746482262421,0.84215186,94954.0,94953.0,0.0158]
[1746482262623,0.21063274,94952.0,94951.0,0.017]
[1746482263559,0.71063274,94952.0,94951.0,0.017]
[1746482263733,0.71063274,94952.0,94951.0,0.02]
[1746482263935,0.71063274,94952.0,94951.0,0.035]
[1746482263936,0.81615303,94952.0,94951.0,0.035]
[1746482264142,0.71063274,94952.0,94951.0,0.038]
[1746482265190,0.71063274,94952.0,94951.0,0.023]
[1746482266243,0.71063274,94952.0,94951.0,0.007]
[1746482267215,0.71063274,94952.0,94951.0,0.0385]
[1746482268064,0.21063274,94952.0,94951.0,0.0385]
[1746482269771,0.2271461,94952.0,94951.0,0.0385]
[1746482274545,0.2271461,94952.0,94951.0,0.1385]
[1746482277354,0.21063274,94952.0,94951.0,0.1385]
[1746482280219,0.22714628,94952.0,94951.0,0.1385]
[1746482282126,0.22714628,94952.0,94951.0,0.1221]
[1746482282488,0.22714628,94952.0,94951.0,0.107]
[1746482283215,0.22714628,94952.0,94951.0,0.1223]
[1746482285720,0.22714628,94952.0,94951.0,0.1382]
[1746482286739,0.21063274,94952.0,94951.0,0.1382]
[1746482289790,0.22714625,94952.0,94951.0,0.1382]
[1746482296768,0.21063274,94952.0,94951.0,0.1382]
[1746482299831,0.22714646,94952.0,94951.0,0.1382]
[1746482301737,0.22714646,94952.0,94951.0,0.107]
[1746482302083,0.24244646,94952.0,94951.0,0.107]
[1746482302286,0.25764646,94952.0,94951.0,0.107]
[1746482302705,0.25764646,94952.0,94951.0,0.104]
[1746482302903,0.75764646,94952.0,94951.0,0.104]
[1746482303126,0.75764646,94952.0,94951.0,0.107]
[1746482303329,0.74244646,94952.0,94951.0,0.107]
[1746482303723,0.74244646,94952.0,94951.0,0.104]
[1746482303937,0.72714646,94952.0,94951.0,0.107]
[1746482308138,0.71063274,94952.0,94951.0,0.107]
[1746482308344,0.76930316,94952.0,94951.0,0.107]
[1746482309187,0.71063274,94952.0,94951.0,0.107]
[1746482310297,0.71063274,94952.0,94951.0,0.104]
[1746482310592,0.71063274,94952.0,94951.0,0.105]
[1746482311197,0.72714695,94952.0,94951.0,0.105]
[1746482311414,0.72714695,94952.0,94951.0,0.102]
[1746482311585,0.83266724,94952.0,94951.0,0.102]
[1746482311959,0.83266724,94952.0,94951.0,0.103]
[1746482312386,0.72714695,94952.0,94951.0,0.103]
[1746482316545,0.71063274,94952.0,94951.0,0.103]
[1746482319914,0.72714696,94952.0,94951.0,0.103]
[1746482322668,0.70643291,94952.0,94951.0,0.103]
[1746482323572,0.67955008,94952.0,94951.0,0.103]
[1746482325626,0.69515008,94952.0,94951.0,0.103]
[1746482325819,1.05075008,94952.0,94951.0,0.103]
[1746482326025,1.03423586,94952.0,94951.0,0.101]
[1746482326195,1.06391204,94952.0,94951.0,0.101]
[1746482326400,1.06391204,94952.0,94951.0,0.102]
[1746482326778,1.16943233,94952.0,94951.0,0.102]
[1746482327414,1.13975615,94952.0,94951.0,0.103]
[1746482327589,1.03423586,94952.0,94951.0,0.103]
[1746482327805,1.04877671,94952.0,94951.0,0.103]
[1746482328004,1.07844638,94952.0,94951.0,0.096]
[1746482329219,1.09496205,94952.0,94951.0,0.096]
[1746482329621,1.20048234,94952.0,94951.0,0.096]
[1746482330333,1.20048234,94952.0,94951.0,0.06909813]
[1746482330922,1.09496205,94952.0,94951.0,0.06909813]
[1746482334528,1.09496205,94952.0,94951.0,0.06809813]
[1746482334728,1.09596205,94952.0,94951.0,0.02194865]
[1746482334964,1.09596205,94952.0,94951.0,0.00113835]
[1746482335165,0.01053751,94899.0,94895.0,0.22129711]
[1746482335365,0.22129119,94898.0,94891.0,0.0115384]
[1746482335569,0.22128608,94900.0,94896.0,0.00443654]
[1746482335778,0.01652068,94898.0,94897.0,0.0314]
[1746482335958,0.01652068,94898.0,94897.0,0.24658818]
[1746482336737,0.001,94899.0,94898.0,0.24215259]
[1746482336878,0.001,94899.0,94898.0,0.2465828]
[1746482337086,0.001,94900.0,94899.0,0.24215037]
[1746482337293,0.001,94900.0,94899.0,0.24657741]
[1746482337600,0.001,94900.0,94899.0,0.24457741]
[1746482338203,0.001,94900.0,94899.0,0.25057741]
[1746482338605,0.22125319,94914.0,94910.0,0.22126006]
[1746482338782,0.21071953,94913.0,94910.0,0.22026006]
[1746482339145,0.22125319,94914.0,94912.0,0.0314]
[1746482339350,0.22125319,94914.0,94913.0,0.0314]
[1746482339544,0.22125319,94914.0,94913.0,0.0347827]
[1746482339745,0.23777244,94914.0,94913.0,0.0347827]
[1746482340081,0.23777244,94914.0,94913.0,0.0337827]
[1746482340551,0.23777244,94914.0,94913.0,0.0367827]
[1746482340737,0.23877244,94914.0,94913.0,0.0407827]
[1746482342475,0.01751925,94914.0,94913.0,0.25150199]
[1746482343375,0.22823632,94914.0,94913.0,0.0407827]
[1746482343534,0.01751925,94914.0,94913.0,0.0407827]
[1746482344759,0.22823632,94914.0,94913.0,0.0407827]
[1746482344975,0.01751925,94914.0,94913.0,0.0407827]
[1746482345187,0.22823632,94914.0,94913.0,0.0407827]
[1746482345597,0.2464199,94914.0,94913.0,0.0407827]
[1746482345843,0.22823632,94914.0,94913.0,0.0113827]
[1746482345987,0.20134762,94914.0,94913.0,0.007]
[1746482346160,0.17839555,94914.0,94913.0,0.007]
[1746482351211,0.19491586,94914.0,94913.0,0.007]
[1746482351620,0.72701586,94914.0,94913.0,0.007]
[1746482352245,0.83253615,94914.0,94913.0,0.007]
[1746482354281,0.72701586,94914.0,94913.0,0.007]
[1746482356857,0.71049555,94914.0,94913.0,0.007]
[1746482359519,0.67839555,94914.0,94913.0,0.007]
[1746482359945,0.69491668,94914.0,94913.0,0.007]
[1746482360246,0.72661668,94914.0,94913.0,0.007]
[1746482363482,0.71121668,94914.0,94913.0,0.007]
[1746482363629,0.73943655,94914.0,94913.0,0.007]
[1746482363836,0.75453655,94914.0,94913.0,0.007]
[1746482364976,0.72631668,94914.0,94913.0,0.007]
[1746482366296,0.71121668,94914.0,94913.0,0.007]
[1746482367756,0.71089555,94914.0,94913.0,0.007]
[1746482368532,0.69469555,94914.0,94913.0,0.007]
[1746482368697,0.67839555,94914.0,94913.0,0.007]
[1746482370644,0.69491668,94914.0,94913.0,0.007]
[1746482374872,0.72591668,94914.0,94913.0,0.007]
[1746482375601,0.69491668,94914.0,94913.0,0.007]
[1746482376043,0.69491668,94914.0,94913.0,0.0233]
[1746482376255,0.69491668,94914.0,94913.0,0.0385]
[1746482376460,0.51652113,94914.0,94913.0,0.24921929]
[1746482376672,0.015,94940.0,94915.0,0.01053574]
[1746482376673,0.21071015,94918.0,94915.0,0.01053574]
[1746482376834,0.01883497,94920.0,94918.0,0.0313]
[1746482377033,0.2295406,94920.0,94919.0,0.0313]
[1746482377242,0.2295406,94920.0,94919.0,0.03601749]
[1746482377797,0.21069862,94923.0,94920.0,0.0313]
[1746482377965,0.01053529,94919.0,94916.0,0.22124778]
[1746482378177,0.01053529,94919.0,94917.0,0.21071004]
[1746482378359,0.001,94920.0,94918.0,0.21070819]
[1746482378559,0.001,94920.0,94919.0,0.24200597]
[1746482378814,0.001,94920.0,94919.0,0.0313]
[1746482379025,0.22124344,94919.0,94917.0,0.0313]
[1746482379209,0.22224344,94919.0,94918.0,0.0313]
[1746482379632,0.21170597,94919.0,94918.0,0.0313]
[1746482380493,0.21070597,94919.0,94918.0,0.0313]
[1746482380929,0.001,94920.0,94919.0,0.0321]
[1746482381126,0.22722146,94921.0,94919.0,0.0321]
[1746482381357,0.21071269,94916.0,94914.0,0.01053585]
[1746482381692,0.22123893,94920.0,94916.0,0.21071058]
[1746482381914,0.22123893,94920.0,94919.0,0.0321]
[1746482382552,0.22123893,94920.0,94919.0,0.0341]
[1746482383166,0.22722078,94921.0,94919.0,0.0341]
[1746482383362,0.01651906,94921.0,94920.0,0.24250375]
[1746482384597,0.01651906,94921.0,94920.0,0.24550375]
[1746482385011,0.01651906,94921.0,94920.0,0.24150375]
[1746482385141,0.01651906,94921.0,94920.0,0.24650375]
[1746482385661,0.22119713,94938.0,94934.0,0.01053363]
[1746482385851,0.22119713,94938.0,94935.0,0.0161]
[1746482385852,0.21066868,94936.0,94935.0,0.0161]
[1746482386811,0.21066868,94936.0,94935.0,0.01959943]
[1746482388143,0.21066868,94936.0,94935.0,0.03529943]
[1746482388362,0.21066868,94936.0,94935.0,0.03929943]
[1746482389876,0.22718558,94936.0,94935.0,0.03929943]
[1746482390439,0.0165169,94936.0,94935.0,0.24996988]
[1746482391164,0.0165169,94936.0,94935.0,0.24596988]
[1746482391371,0.0165169,94936.0,94935.0,0.25096988]
[1746482396664,0.01053263,94943.0,94940.0,0.21065809]
[1746482396869,0.01053263,94943.0,94941.0,0.21065644]
[1746482397074,0.22118306,94944.0,94941.0,0.21513688]
[1746482398109,0.22118306,94944.0,94941.0,0.21713688]
[1746482398318,0.22118306,94944.0,94941.0,0.23043688]
[1746482398615,0.22118306,94944.0,94941.0,0.23143688]
[1746482398780,0.21065492,94942.0,94941.0,0.02078044]
[1746482399622,0.21065492,94942.0,94941.0,0.00548044]
[1746482399798,0.22717074,94942.0,94941.0,0.00548044]
[1746482400505,0.22717074,94942.0,94941.0,0.00448044]
[1746482400832,0.22717074,94942.0,94941.0,0.00648044]
[1746482401791,0.01751582,94942.0,94941.0,0.23023758]
[1746482401966,0.01751582,94942.0,94941.0,0.24693758]
[1746482402167,0.001,94942.0,94941.0,0.00548044]
[1746482402545,0.21165492,94942.0,94941.0,0.00548044]
[1746482403180,0.21065492,94942.0,94941.0,0.00548044]
[1746482403351,0.01053241,94945.0,94941.0,0.00448044]
[1746482403561,0.21061728,94959.0,94950.0,0.01053185]
[1746482403785,0.01454085,94982.0,94942.0,0.00210629]
[1746482403786,0.21159725,94969.0,94960.0,0.21061456]
[1746482403997,0.21159725,94969.0,94958.0,0.21061943]
[1746482403998,0.00830304,94959.0,94958.0,0.21061943]
[1746482404195,0.001,94969.0,94968.0,0.21059725]
[1746482404430,0.001,94969.0,94968.0,0.24269725]
[1746482404655,0.001,94969.0,94968.0,1.07515342]
[1746482404829,0.001,94989.0,94988.0,0.22695291]
[1746482405133,0.001,94989.0,94988.0,5.64719376]
[1746482405284,0.001,94989.0,94988.0,0.58265291]
[1746482405737,0.001,94989.0,94988.0,0.24265291]
[1746482406470,0.001,94989.0,94988.0,0.27684396]
[1746482406954,0.001,94989.0,94988.0,0.24265291]
[1746482407160,0.001,94989.0,94988.0,0.24765291]
[1746482407783,0.001,94989.0,94988.0,0.25165291]
[1746482408000,0.001,94989.0,94988.0,0.009]
[1746482408158,0.001,94989.0,94988.0,0.01110515]
[1746482408357,0.001,94989.0,94988.0,0.009]
[1746482409407,0.001,94989.0,94988.0,0.21955291]
[1746482418247,0.001,94989.0,94988.0,0.25085291]
[1746482418449,0.001,94989.0,94988.0,0.59085291]
[1746482424351,0.001,95009.0,95008.0,0.21050858]
[1746482427466,0.001,95009.0,95008.0,0.21150858]
[1746482428268,0.001,95009.0,95008.0,0.21050858]
[1746482429595,0.001,95009.0,95008.0,0.2146134]
[1746482429810,0.001,95009.0,95008.0,0.21250858]
[1746482433556,0.001,95009.0,95008.0,0.24480858]
[1746482434415,0.001,95009.0,95008.0,0.24280858]
[1746482434666,0.001,95009.0,95008.0,0.24880858]
[1746482435085,0.001,95009.0,95008.0,0.24280858]
[1746482435247,0.001,95009.0,95008.0,0.24880858]
[1746482435762,0.001,95009.0,95008.0,0.25280858]
[1746482436379,0.001,95009.0,95008.0,0.24880858]
[1746482436553,0.001,95009.0,95008.0,0.26334943]
[1746482436761,0.001,95009.0,95008.0,4.05914943]
[1746482439095,0.001,95009.0,95008.0,4.39914943]
[1746482439298,0.001,95009.0,95008.0,0.59380858]
[1746482440060,0.001,95009.0,95008.0,0.56150858]
[1746482441845,0.001,95009.0,95008.0,0.60724943]
[1746482442047,0.001,95009.0,95008.0,5.65724943]
[1746482442651,0.001,95009.0,95008.0,5.65224943]
[1746482442851,0.001,95009.0,95008.0,5.19394943]
[1746482443180,0.001,95009.0,95008.0,3.31874943]
[1746482443518,0.002,95009.0,95008.0,3.32674943]
[1746482444690,0.001,95029.0,95028.0,0.21046428]
[1746482444905,0.001,95029.0,95028.0,0.2125684]
[1746482449234,0.001,95029.0,95028.0,0.2435684]
[1746482449445,0.001,95029.0,95028.0,0.24146428]
[1746482452387,0.00026338,95029.0,95028.0,0.24146428]
[1746482453561,0.01649798,95045.0,95044.0,0.21042885]
[1746482454713,0.02049798,95045.0,95044.0,0.21042885]
[1746482455348,0.02049798,95045.0,95044.0,0.21253284]
[1746482456254,0.001,95045.0,95044.0,0.2211941]
[1746482456451,0.001,95049.0,95048.0,0.21041999]
[1746482456635,0.001,95049.0,95048.0,0.21252375]
[1746482457782,0.001,95049.0,95048.0,0.21152375]
[1746482459267,0.002,95049.0,95048.0,0.21152375]
[1746482461114,0.0321,95049.0,95048.0,0.001]
[1746482461334,0.24251778,95049.0,95048.0,0.001]
[1746482462099,0.25901658,95049.0,95048.0,0.001]
[1746482462307,0.25801658,95049.0,95048.0,0.001]
[1746482462549,0.01052254,95034.0,95030.0,0.21045927]
[1746482462750,0.0326,95034.0,95033.0,0.21045321]
[1746482462942,0.0326,95033.0,95032.0,0.21045511]
[1746482463146,0.01052321,95028.0,95022.0,0.04948835]
[1746482463352,0.24307535,95023.0,95022.0,0.04948835]
[1746482464385,0.0326,95023.0,95022.0,0.04948835]
[1746482464593,0.0326,95023.0,95022.0,0.05048835]
[1746482464932,0.04910147,95023.0,95022.0,0.001]
[1746482465089,0.04910147,95023.0,95022.0,0.002]
[1746482465700,0.04910147,95023.0,95022.0,0.001]
[1746482466296,0.01052421,95019.0,95016.0,0.21049061]
[1746482466513,0.01052443,95017.0,95005.0,0.01052576]
[1746482466723,0.21049751,95013.0,95008.0,0.21050708]
[1746482466929,0.031,95012.0,95008.0,0.21050708]
[1746482467215,0.031,95012.0,95010.0,0.21050368]
[1746482468585,0.031,95012.0,95010.0,0.21150368]
[1746482469445,0.031,95012.0,95010.0,0.21250368]
[1746482470936,0.0314,95011.0,95010.0,0.002]
[1746482471752,0.0314,95011.0,95010.0,0.001]
[1746482472538,0.0314,95011.0,95010.0,0.002]
[1746482476546,0.0314,95011.0,95010.0,0.21250415]
[1746482478828,0.01052454,95016.0,95014.0,0.21049438]
[1746482479053,0.0313,95015.0,95014.0,0.21049438]
[1746482480505,0.04780222,95015.0,95014.0,0.21049438]
[1746482481515,0.04880222,95015.0,95014.0,0.21049438]
[1746482482405,0.01750222,95015.0,95014.0,0.21049438]
[1746482482875,0.06032687,95015.0,95012.0,0.21049784]
[1746482483101,0.01052476,95014.0,95011.0,0.21050103]
[1746482483336,0.0323,95014.0,95012.0,0.21049847]
[1746482483572,0.0323,95014.0,95013.0,0.21049655]
[1746482483777,0.23852024,95015.0,95012.0,0.21049847]
[1746482483960,0.0323,95014.0,95012.0,0.21049847]
[1746482484164,0.0323,95013.0,95012.0,0.21049847]
[1746482484520,0.0323,95013.0,95010.0,0.21050325]
[1746482484768,0.0323,95013.0,95012.0,0.21049783]
[1746482489618,0.0323,95013.0,95011.0,0.21050194]
[1746482489819,0.02572421,95019.0,95013.0,0.01052487]
[1746482490243,0.01052432,95018.0,95012.0,0.2210247]
[1746482490473,0.01052454,95016.0,95012.0,0.2210247]
[1746482490672,0.2104954,95014.0,95012.0,0.2210247]
[1746482490877,0.22101881,95015.0,95012.0,0.2210247]
[1746482491074,0.01650261,95014.0,95012.0,0.2210247]
[1746482491672,0.02802737,95014.0,95012.0,0.21049881]
[1746482491852,0.02802737,95014.0,95011.0,0.22102697]
[1746482491853,0.23852285,95014.0,95011.0,0.22102697]
[1746482492428,0.23852285,95014.0,95012.0,0.21049964]
[1746482492630,0.01750261,95014.0,95012.0,0.21049964]
[1746482493019,0.02802737,95014.0,95010.0,0.22102857]
[1746482493229,0.21049976,95012.0,95009.0,0.21050421]
[1746482493659,0.21050219,95011.0,95008.0,0.2105069]
[1746482493858,0.25142728,95011.0,95008.0,0.22103232]
[1746482494089,0.21049976,95012.0,95009.0,0.21050497]
[1746482494993,0.22102474,95012.0,95009.0,0.21050497]
[1746482495659,0.0105252,95010.0,95007.0,0.01052554]
[1746482495937,0.23027608,95011.0,95008.0,0.21050649]
[1746482496134,0.01977414,95011.0,95010.0,0.21050415]
[1746482498408,0.01977414,95011.0,95010.0,0.21150415]
[1746482498947,0.01977414,95011.0,95010.0,0.21050415]
[1746482499661,0.03627722,95011.0,95010.0,0.21050415]
[1746482504262,0.03627722,95011.0,95005.0,0.01052576]
[1746482504263,0.24062409,95001.0,94981.0,0.0155]
[1746482504468,0.24062409,95001.0,94982.0,0.00210513]
[1746482504688,0.24062409,95001.0,94978.0,0.04948835]
[1746482504891,0.62678719,95001.0,94978.0,0.04948835]
[1746482505220,1.12678719,95001.0,94978.0,0.04948835]
[1746482506141,1.12878719,95001.0,94978.0,0.04948835]
[1746482506375,1.24884833,95001.0,94978.0,0.04948835]
[1746482506593,1.14332804,95001.0,95000.0,0.011]
[1746482506769,1.12682211,95001.0,95000.0,0.011]
[1746482507472,1.12982211,95001.0,95000.0,0.011]
[1746482510488,1.10016494,95001.0,95000.0,0.011]
[1746482510879,1.11667348,95001.0,95000.0,0.011]
[1746482515711,1.09602273,95001.0,95000.0,0.011]
[1746482516673,1.07951419,95001.0,95000.0,0.011]
[1746482517301,1.08051419,95001.0,95000.0,0.011]
[1746482520030,1.09702282,95001.0,95000.0,0.011]
[1746482520454,1.20254311,95001.0,95000.0,0.011]
[1746482520650,1.09702282,95001.0,95000.0,0.011]
[1746482521039,1.09502282,95001.0,95000.0,0.011]
[1746482521236,1.10102282,95001.0,95000.0,0.011]
[1746482521443,1.10002282,95001.0,95000.0,0.011]
[1746482522411,1.10002282,95001.0,95000.0,0.004]
[1746482522939,1.09702282,95001.0,95000.0,0.003]
[1746482523369,1.10302282,95001.0,95000.0,0.003]
[1746482523605,1.08848197,95001.0,95000.0,0.003]
[1746482523996,1.07848197,95001.0,95000.0,0.003]
[1746482524234,1.06338197,95001.0,95000.0,0.003]
[1746482524453,1.04638197,95001.0,95000.0,0.003]
[1746482524934,0.71338197,95001.0,95000.0,0.003]
[1746482525373,1.05038197,95001.0,95000.0,0.003]
[1746482525585,1.05438197,95001.0,95000.0,0.003]
[1746482526020,1.05038197,95001.0,95000.0,0.003]
[1746482526398,1.05338197,95001.0,95000.0,0.003]
[1746482526622,0.71338197,95001.0,95000.0,0.003]
[1746482526826,0.02550863,95001.0,95000.0,0.0351]
[1746482526983,0.009,95001.0,95000.0,0.24562631]
[1746482527410,0.005,95001.0,95000.0,0.24562631]
[1746482527600,0.01052476,95014.0,95012.0,0.0161]
[1746482527819,0.01052443,95017.0,95012.0,0.01052498]
[1746482528075,0.01052454,95016.0,95013.0,0.21049751]
[1746482528730,0.01052443,95017.0,95012.0,0.02652498]